Cogmind - Beta 16 @@@ ROGUE MODE // 2026.01.07 @ 15:59:27 Player: Lunishko Result: Destroyed by G-47 Trooper with Particle Gun Performance ------------- Evolutions (2) 1000 Regions Visited (6) 1200 Robots Destroyed (60) 300 Value Destroyed (1633) 1633 Prototype IDs (3) 60 Alien Tech Used (0) 0 Bonus (0) 0 TOTAL SCORE: 4193 Bonus ------- None Cogmind --------- Core Integrity 0/550 Matter 300/300 Energy 78/100 System Corruption 11% Temperature Cool (9) Movement Walking (120) Location -8/Storage Parts ------- > --- POWER (1) -------- (None) > --- PROPULSION (3) --- Aluminum Leg Aluminum Leg Aluminum Leg > --- UTILITY (5) ------ Improved Heat Sink Transport Network Coupler > --- WEAPON (2) ------- Particle Gun Particle Gun > --- INVENTORY (5) ---- Nuclear Core Beam Rifle Datajack Peak State ------------ > --- POWER ------------ Nuclear Core > --- PROPULSION ------- Light Treads Light Treads Light Treads > --- UTILITY ---------- Advanced Visual Processing Unit Experimental Sensor Array Transport Network Coupler Improved Light Armor Plating > --- WEAPON ----------- Heavy EM Shotgun Advanced Beam Cannon > --- INVENTORY -------- Nuclear Core Particle Gun Light Assault Rifle Datajack [Rating: 29] Favorites ----------- Power Light Ion Engine Engine Light Ion Engine Power Core Light Nuclear Core Propulsion Light Treads Treads Light Treads Leg Aluminum Leg Wheel Compact Wheel Utility Small Storage Unit Device Seismic Detector Storage Small Storage Unit Processor Transport Network Coupler Protection Light Armor Plating Weapon Assault Rifle Energy Gun Medium Laser Energy Cannon Light EM Pulse Cannon Ballistic Gun Assault Rifle Special Weapon Mining Laser Build | -11 -10 -10 -9 -9 -8 -8 ------- Run | Yrd Mat Min Mat Min Mat Sto Slots Evolved 4 | . . . 2 . 2 . Power . | . . . . . . . Propulsion 1 | . . . . . 1 . Utility 3 | . . . 2 . 1 . Weapon . | . . . . . . . Parts Attached 63 | 6 4 2 21 2 1 27 Power 9 | 1 1 1 3 . . 3 Engine 6 | 1 1 1 3 . . . Core 3 | . . . . . . 3 Reactor . | . . . . . . . Propulsion 19 | 2 . . 6 1 1 9 Treads 6 | 2 . . 1 . . 3 Leg 7 | . . . . 1 . 6 Wheel 6 | . . . 5 . 1 . Hover . | . . . . . . . Flight . | . . . . . . . Utility 15 | 1 1 1 6 . . 6 Device 5 | . 1 1 1 . . 2 Storage 2 | 1 . . . . . 1 Processor 3 | . . . 2 . . 1 Hackware . | . . . . . . . Protection 5 | . . . 3 . . 2 Artifact . | . . . . . . . Weapon 20 | 2 2 . 6 1 . 9 Energy Gun 10 | 2 . . 1 . . 7 Energy Cannon 3 | . . . 2 . . 1 Ballistic Gun 6 | . 1 . 3 1 . 1 Ballistic Cannon . | . . . . . . . Launcher . | . . . . . . . Special Weapon 1 | . 1 . . . . . Impact Weapon . | . . . . . . . Slashing Weapon . | . . . . . . . Piercing Weapon . | . . . . . . . Special Melee Weapon . | . . . . . . . Unidentified Prototypes 3 | . . . . . . 3 Corrupted Parts 1 | . . . . . . 1 System Corruption 4 | . . . . . . 4 Parts Lost 39 | . 1 2 8 4 . 24 Power 4 | . . . 1 1 . 2 Propulsion 11 | . . 1 2 2 . 6 Utility 11 | . 1 . 2 1 . 7 Weapon 13 | . . 1 3 . . 9 Highest Loss Streak 11 | . 1 1 2 4 . 11 To Critical Strikes . | . . . . . . . Average Backups 4 | 1 2 5 6 4 3 3 Power . | . . 1 . . . . Propulsion . | . . . . 1 . . Utility 1 | . . 1 1 2 1 . Weapon 1 | 1 1 1 1 . 1 1 Tool/Special . | . . . . . . . Unused Backups 7 | . . . 1 . . 6 Power 3 | . . . . . . 3 Propulsion 1 | . . . . . . 1 Utility . | . . . . . . . Weapon 2 | . . . 1 . . 1 Tool/Special 1 | . . . . . . 1 Average Slot Usage (%) 85 | . 98 90 88 93 71 67 Engine 9 | . 14 14 10 9 . . Core 1 | . . . . . . 5 Treads 12 | . 28 24 5 . . 4 Leg 3 | . . . . 1 9 15 Wheel 5 | . . . 9 18 9 1 Device 7 | . 12 8 7 . 8 5 Storage 10 | . 14 14 11 11 9 2 Processor 9 | . . . 13 22 18 14 Protection 3 | . . . 8 9 . 3 Energy Gun 7 | . 14 11 2 . . 10 Energy Cannon 1 | . . . 4 1 . 2 Ballistic Gun 12 | . 11 13 14 20 18 1 Peak Build Rating 29 | 6 7 7 14 11 10 29 Average Rating 9 | 4 6 6 11 10 9 14 On Entrance 6 | . 6 6 7 11 8 10 Avg Prop Armor Cover (%) 11 | . . . 4 . 11 12 Naked Turns . | . . . . . . . Heaviest Build 25 | 13 15 13 25 16 10 20 Greatest Support 60 | 40 40 40 32 32 16 60 Greatest Overweight (x) 5 | . . . 5 2 . 2 Average Overweight (x) . | . . . . . . . Largest Inventory Capacity 25 | 8 8 8 8 8 8 25 Average Capacity 7 | 7 8 8 8 8 8 5 Most Carried 8 | 4 5 6 8 6 4 6 Average Carried 4 | 1 2 5 6 4 3 3 Final Capacity 8 | 8 8 8 8 8 8 5 Final Carried 6 | 2 5 6 4 5 3 3 Class Distribution -------------------- 87% | Mutant 12% | Scavenger-Mutant Dominant Class ---------------- Mutant | -10/Materials Mutant | -10/Mines Mutant | -9/Materials Mutant | -9/Mines Mutant | -8/Materials Mutant | -8/Storage Resources | -11 -10 -10 -9 -9 -8 -8 ----------- Run | Yrd Mat Min Mat Min Mat Sto Matter Collected 1292 | 260 69 100 458 70 . 335 Remotely . | . . . . . . . Salvage Created 2172 | 135 157 111 805 92 . 872 Parts 118 | 5 9 18 44 3 . 39 Haulers Intercepted 1 | . . . . . . 1 Recyclers Shooed 1 | . . . 1 . . . Parts Field Recycled . | . . . . . . . Retrieved Matter . | . . . . . . . Parts Self-Destructed . | . . . . . . . Prevented . | . . . . . . . Parts Restored . | . . . . . . . Kills | -11 -10 -10 -9 -9 -8 -8 ------- Run | Yrd Mat Min Mat Min Mat Sto Combat Hostiles Destroyed 49 | . 4 9 19 3 . 14 Melee 3 | . . . . . . 3 Guns 37 | . 4 8 13 3 . 9 Cannons 6 | . . 1 5 . . . AOE 2 | . . . 1 . . 1 Classes Destroyed 10 | 2 3 . 3 . . 2 Worker 2 | . . . 1 . . 1 Tunneler 3 | 2 . 1 . . . . Hauler 1 | . . . . . . 1 Recycler 3 | 1 . . 2 . . . Operator 1 | . 1 . . . . . Watcher 1 | . . . 1 . . . Swarmer 17 | . 1 9 7 . . . Grunt 23 | . 3 . 7 3 . 10 Duelist 1 | . . . . . . 1 Sentry 8 | . . . 5 . . 3 Best Kill Streak 5 | 3 2 3 4 3 . 5 Combat Bots Only 4 | . 2 3 4 3 . 3 Max Kills in Single Turn 2 | 1 1 2 2 1 . 1 Gunslinging 1 | . . 1 . . . . Exploded 1 | . . . 1 . . 1 Melee 1 | . . . . . . 1 Uniques/NPCs Destroyed . | . . . . . . . Combat | -11 -10 -10 -9 -9 -8 -8 -------- Run | Yrd Mat Min Mat Min Mat Sto Hostile Shots Fired 471 | . 33 53 142 41 . 202 Missed 98 | . 10 7 32 11 . 38 Hits 373 | . 23 46 110 30 . 164 Melee 1 | . . . . . . 1 Projectile 372 | . 23 46 110 30 . 163 Critical Strikes 13 | . . . 1 . . 12 Damage Taken 4813 | . 215 344 1215 364 . 2675 Core 990 | . 43 67 185 142 . 553 Absorbed by Shields . | . . . . . . . Redirected to Shielding 33 | . . . . . . 33 Core Remaining (%) 58 | 100 . 56 . 18 . . Volleys Fired 186 | 6 17 31 60 14 . 58 Largest 2 | 2 2 2 2 2 . 2 Hottest 150 | 90 100 150 85 43 . 133 Shots Fired 331 | 12 32 55 116 28 . 88 Gun 287 | 12 30 45 101 28 . 71 Cannon 32 | . . . 15 . . 17 Launcher . | . . . . . . . Special 12 | . 2 10 . . . . Kinetic 156 | . 15 21 83 28 . 9 Thermal 140 | 12 17 34 18 . . 59 Explosive . | . . . . . . . Electromagnetic 35 | . . . 15 . . 20 Robot Hit Streak 17 | 11 17 4 15 9 . 9 Robot Miss Streak 7 | . 1 6 7 3 . 3 Penetration Max . | . . . . . . . Secondary Targets 6 | . . 3 1 1 . 1 Max Gunslinging Chain 1 | . . 1 1 1 . 1 Shots Hit Robots 217 | 11 21 20 83 22 . 60 Core Hits 122 | 4 10 11 41 8 . 48 Critical Kills . | . . . . . . . Critical Parts Destroyed 1 | . . . . 1 . . Critical Strikes 7 | . 3 . 1 1 . 2 Burn 6 | . 3 . 1 . . 2 Destroy 1 | . . . . 1 . . Melee Attacks . | . . . . . . . Impact . | . . . . . . . Slashing . | . . . . . . . Piercing . | . . . . . . . Sneak Attacks . | . . . . . . . Combat Hostiles . | . . . . . . . Follow-up Attacks . | . . . . . . . Damage Inflicted 3639 | 128 262 306 1360 280 . 1303 Guns 2885 | 128 261 252 1048 280 . 916 Cannons 392 | . . . 207 . . 185 Explosions 175 | . . . 97 . . 78 Melee . | . . . . . . . Ramming 163 | . 1 30 8 . . 124 Kinetic 1410 | . 136 115 788 280 . 91 Thermal 1501 | 128 125 161 357 . . 730 Explosive . | . . . . . . . Electromagnetic 565 | . . . 207 . . 358 Impact . | . . . . . . . Slashing . | . . . . . . . Piercing . | . . . . . . . Highest Corruption 11 | . . . . . . 11 Average Corruption 7 | . . . . . . 7 Corruption Purged . | . . . . . . . Corruption Blocked . | . . . . . . . Effects 18 | . . . . . . 18 Message Errors 4 | . . . . . . 4 Matter Fused 3 | . . . . . . 3 Energy Discharges 4 | . . . . . . 4 Data Loss (minor) 2 | . . . . . . 2 Data Loss (major) 2 | . . . . . . 2 Misdirections 2 | . . . . . . 2 Weapon Failures 1 | . . . . . . 1 Overload Shots . | . . . . . . . Overflow Damage 5 | . . . 5 . . . Projectiles . | . . . . . . . Explosions 5 | . . . 5 . . . Melee . | . . . . . . . Knockbacks 1 | . . . . . . 1 Impact 1 | . . . . . . 1 Kinetic . | . . . . . . . Secondary . | . . . . . . . Self-Inflicted Damage 117 | . . . 32 . . 85 Shots 2 | . . . 1 . . 1 Rammed 46 | . 1 8 4 . . 33 Targets Rammed 53 | . 1 8 4 . . 40 Kicked 7 | . . . . . . 7 Crushed . | . . . . . . . Highest Temperature 449 | 120 78 184 168 31 . 449 Average Temperature 72 | 48 25 49 32 12 . 136 Received Heat Transfer 2208 | . 69 . 321 207 . 1611 Effects 4 | . . . . . . 4 Shutdowns 1 | . . . . . . 1 Energy Bleed 2 | . . . . . . 2 Damage (minor) 1 | . . . . . . 1 Siege Activations . | . . . . . . . Martial Activations . | . . . . . . . Shielding Activations . | . . . . . . . Robots Disrupted 1 | . . . . . . 1 Combat Hostiles 1 | . . . . . . 1 Robots Corrupted 1 | . . . . . . 1 Combat Hostiles 1 | . . . . . . 1 Parts Fried 2 | . . . . . . 2 Impact Corruptions . | . . . . . . . Robots Melted . | . . . . . . . Combat Hostiles . | . . . . . . . Parts Melted 4 | 1 1 . . . . 2 Heat Transferred 4027 | 347 592 457 940 . . 1691 Parts Sabotaged . | . . . . . . . Parts Stolen . | . . . . . . . Parts Stripped . | . . . . . . . Power Chain Reactions 2 | . . . 1 . . 1 Alert | -11 -10 -10 -9 -9 -8 -8 ------- Run | Yrd Mat Min Mat Min Mat Sto Maximum Alert Level . | . . . . . . . Low Security (%) 100 | 100 100 100 100 100 100 100 Level 1 . | . . . . . . . Level 2 . | . . . . . . . Level 3 . | . . . . . . . Level 4 . | . . . . . . . Level 5 . | . . . . . . . High Security . | . . . . . . . Max Security . | . . . . . . . Peak Influence 138 | 10 50 74 138 62 14 78 Initial 42 | . . 16 . 42 14 . Average 21 | 1 8 16 41 14 3 17 Influence Increases 1458 | 15 151 224 515 115 . 438 Destroy 0b10 Robot/C 980 | . 80 180 380 60 . 280 Destroy 0b10 Robot/NC 60 | 15 5 5 20 . . 15 Destroy Leader 184 | . 20 30 82 10 . 42 Successful Hack 7 | . . . . . . 7 Disable Machine 45 | . 15 . 15 . . 15 Destroy Structure 17 | . 1 9 3 . . 4 Lose Combat Pursuer 165 | . 30 . 15 45 . 75 Influence Decreases 1458 | 15 109 266 407 185 38 438 Entered New Map 116 | . . 26 . 66 24 . Time Decay 1031 | 15 109 220 342 90 14 241 Lost Part 311 | . . 20 65 29 . 197 Squads Dispatched 2 | . 1 . . . . 1 Investigation . | . . . . . . . Extermination . | . . . . . . . Reinforcement 2 | . 1 . . . . 1 Assault . | . . . . . . . Garrison . | . . . . . . . Intercept . | . . . . . . . Searches Triggered . | . . . . . . . Construction Impeded . | . . . . . . . Haulers Reinforced . | . . . . . . . Active Scanning Responses . | . . . . . . . Cargo Convoy Interrupts . | . . . . . . . Stealth | -11 -10 -10 -9 -9 -8 -8 --------- Run | Yrd Mat Min Mat Min Mat Sto Distress Signals 7 | . . . 5 . . 2 Communications Jammed . | . . . . . . . Distress Signals . | . . . . . . . Times Spotted 84 | . 7 9 31 6 . 31 Peak Tracking Total 7 | . 3 3 6 3 . 7 Tactical Retreats 6 | . 1 . 1 1 . 3 Traps | -11 -10 -10 -9 -9 -8 -8 ------- Run | Yrd Mat Min Mat Min Mat Sto Traps Triggered 2 | . . . 1 . . 1 Indirectly . | . . . . . . . Trap Hack Attempts . | . . . . . . . Triggered . | . . . . . . . Disarmed . | . . . . . . . Reprogrammed . | . . . . . . . Reused . | . . . . . . . Traps Extracted . | . . . . . . . Installed . | . . . . . . . Triggered . | . . . . . . . Machines | -11 -10 -10 -9 -9 -8 -8 ---------- Run | Yrd Mat Min Mat Min Mat Sto Machines Disabled 3 | . 1 . 1 . . 1 Max in Single Turn 1 | . 1 . 1 . . 1 Machines Repaired . | . . . . . . . Machines Dismantled . | . . . . . . . Machines Sabotaged . | . . . . . . . Overloaded Fab Kills . | . . . . . . . Hacking | -11 -10 -10 -9 -9 -8 -8 --------- Run | Yrd Mat Min Mat Min Mat Sto Machines Accessed 5 | . 2 . 1 . . 2 Terminals 4 | . 2 . . . . 2 Fabricators . | . . . . . . . Repair Stations . | . . . . . . . Recycling Units . | . . . . . . . Scanalyzers 1 | . . . 1 . . . Garrison Access . | . . . . . . . Total Hacks 7 | . 3 . 2 . . 2 Successful 4 | . 1 . 1 . . 2 Failed 2 | . 2 . . . . . Catastrophic 1 | . 1 . . . . . Database Lockouts 1 | . . . 1 . . . Manual . | . . . . . . . Terminals 5 | . 3 . . . . 2 Fabricators . | . . . . . . . Repair Stations . | . . . . . . . Recycling Units . | . . . . . . . Scanalyzers 2 | . . . 2 . . . Garrison Access . | . . . . . . . Terminal Hacks 3 | . 1 . . . . 2 Open Door 1 | . . . . . . 1 Zone Layout 2 | . 1 . . . . 1 Fabricator Hacks . | . . . . . . . Repair Station Hacks . | . . . . . . . Recycling Unit Hacks . | . . . . . . . Scanalyzer 1 | . . . 1 . . . Retrieve Study 1 | . . . 1 . . . Garrison Access Hacks . | . . . . . . . Unauthorized Hacks . | . . . . . . . Terminals . | . . . . . . . Fabricators . | . . . . . . . Repair Stations . | . . . . . . . Recycling Units . | . . . . . . . Scanalyzers . | . . . . . . . Garrison Access . | . . . . . . . Data Cores Recovered . | . . . . . . . Used . | . . . . . . . Hacking Detections 4 | . 2 . 1 . . 1 Full Trace Events . | . . . . . . . Feedback Events . | . . . . . . . Feedback Blocked . | . . . . . . . Robot Schematics Acquired . | . . . . . . . Robots Built . | . . . . . . . Authchips . | . . . . . . . Time . | . . . . . . . Total Robot Build Rating . | . . . . . . . Part Schematics Acquired . | . . . . . . . Parts Built . | . . . . . . . Authchips . | . . . . . . . Time . | . . . . . . . Total Part Build Rating . | . . . . . . . Part Studies Acquired 1 | . . . 1 . . . Parts Repaired . | . . . . . . . Time . | . . . . . . . Parts Recycled . | . . . . . . . Recycled Matter . | . . . . . . . Retrieved Matter . | . . . . . . . Retrieved Components . | . . . . . . . Parts Scanalyzed . | . . . . . . . Part Schematics Acquired . | . . . . . . . Parts Damaged . | . . . . . . . Bothacking | -11 -10 -10 -9 -9 -8 -8 ------------ Run | Yrd Mat Min Mat Min Mat Sto Used RIF Installer . | . . . . . . . Robots Hacked . | . . . . . . . Non-combat . | . . . . . . . Combat . | . . . . . . . Robot Hacks Applied . | . . . . . . . Relay Couplers Released . | . . . . . . . Fabnet Peak Effective % . | . . . . . . . Robots Rewired . | . . . . . . . Allies Hacked . | . . . . . . . Hacks Repelled . | . . . . . . . Allies | -11 -10 -10 -9 -9 -8 -8 -------- Run | Yrd Mat Min Mat Min Mat Sto Total Allies . | . . . . . . . Largest Group . | . . . . . . . Highest-Rated Group . | . . . . . . . Highest-Rated Ally . | . . . . . . . Total Orders . | . . . . . . . Ally Attacks . | . . . . . . . Total Damage . | . . . . . . . Kills . | . . . . . . . Allies Corrupted . | . . . . . . . Allies Melted . | . . . . . . . Intel | -11 -10 -10 -9 -9 -8 -8 ------- Run | Yrd Mat Min Mat Min Mat Sto Active Infowar (turns) 3212 | . 446 648 1005 508 99 506 Optics 288 | . . . . . . 288 Sensors 50 | . . . . . . 50 Structural 493 | . . . 258 . 98 137 Seismic 1539 | . 446 648 445 . . . T.N.C. 2105 | . . . 992 508 99 506 Robot Analysis Total . | . . . . . . . Derelict Logs Recovered 3 | . . 2 . 1 . . Drone Launches . | . . . . . . . Drone Recoveries . | . . . . . . . Exploration | -11 -10 -10 -9 -9 -8 -8 ------------- Run | Yrd Mat Min Mat Min Mat Sto Turns Passed 4117 | 112 494 1057 1005 508 99 842 Spaces Moved 2295 | 56 243 580 502 443 38 433 Core 68 | 8 . . 18 3 . 39 Treads 1167 | 48 243 580 182 . . 114 Legs 295 | . . . . 51 . 244 Wheels 765 | . . . 302 389 38 36 Hover . | . . . . . . . Flight . | . . . . . . . Fastest Speed 50 | 50 160 160 100 100 100 50 Average Speed 139 | 144 160 160 147 102 100 129 Slowest Speed 300 | 160 160 160 300 150 100 190 Overloaded Moves . | . . . . . . . Propulsion Burnouts . | . . . . . . . Robots Hopped . | . . . . . . . Potential Cave-ins . | . . . . . . . Cave-ins Triggered . | . . . . . . . Exploration Rate (%) 36 | 4 27 86 32 61 4 41 Regions Visited 6 Branch Regions 3 Pre-discovered Areas 1 | . . 1 . . . . Known Exits Taken 3 | . . . 1 1 1 . Unknown Exits Taken 3 | 1 1 1 . . . . Scrap Searched 3 | . . 1 . 2 . . Spaces Dug 7 | . 1 6 . . . . Terrain Destroyed 15 | . 1 9 3 . . 2 Melee . | . . . . . . . Projectile 10 | . 1 9 . . . . AOE 5 | . . . 3 . . 2 Terrain Rammed . | . . . . . . . Walls Destroyed . | . . . . . . . Machines Disabled . | . . . . . . . Actions | -11 -10 -10 -9 -9 -8 -8 --------- Run | Yrd Mat Min Mat Min Mat Sto Total 2848 | 75 310 628 648 470 99 618 Wait 169 | . 41 . 33 10 60 25 Move 2289 | 55 242 579 501 442 37 433 Hop . | . . . . . . . Pick Up 56 | 8 4 4 17 2 . 21 Fast Attach 13 | . . . 3 . . 10 Attach 37 | 6 1 2 9 1 2 16 Detach . | . . . . . . . Swap 23 | . 4 3 9 1 . 6 Drop 22 | . . 1 12 . . 9 Fire 186 | 6 17 31 60 14 . 58 Melee . | . . . . . . . Ram 29 | . . . 1 . . 28 Kick 7 | . . . . . . 7 Crush 17 | . 1 8 3 . . 5 Escape Stasis . | . . . . . . . Rewire . | . . . . . . . Trap . | . . . . . . . Miscellaneous . | . . . . . . . Route ------- -11/Scrapyard -10/Materials (discovered 2 exits: Mat / [*Min]) -10/Mines -9/Materials (discovered 2 exits: *Min x2) -9/Mines (discovered 2 exits: *Mat x2) -8/Materials (discovered 2 exits: Fac / *Sto) -8/Storage History --------- Turn | Location | Event 31 | -11/Scrapyard | Discovered new exit (range 15) 113 | -11/Scrapyard | Entered Materials 246 | -10/Materials | Discovered new exit (range 12) 246 | -10/Materials | Discovered new exit (range 16) 308 | -10/Materials | Build established: Mutant 607 | -10/Materials | Entered Mines 1440 | -10/Mines | Found a damaged Exp. Sensor Array with a note attached 1445 | -10/Mines | Found Prototype Device 1544 | -10/Mines | Discovered new exit (range 15) 1646 | -10/Mines | Learned location of Recycling (-8) 1664 | -10/Mines | Entered Materials 1664 | -9/Materials | Evolved 2 slots: Utility x2 1665 | -9/Materials | Identified exit to Mines 2503 | -9/Materials | Central database locked down 2669 | -9/Materials | Entered Mines 2684 | -9/Mines | Discovered new exit (range 14) 2706 | -9/Mines | Identified exit to Materials 2715 | -9/Mines | Learned 4 Materials zone layouts 2786 | -9/Mines | Discovered exit to Materials (range 11) 3035 | -9/Mines | Core integrity fell below 50% 3109 | -9/Mines | Core integrity fell below 20% 3121 | -9/Mines | Lost 4 parts (1p2n1u) 3177 | -9/Mines | Entered Materials 3177 | -8/Materials | Evolved 2 slots: Propulsion x1, Utility x1 3178 | -8/Materials | Identified exit to Storage 3178 | -8/Materials | Identified exit to Factory 3276 | -8/Materials | Entered Storage 3450 | -8/Storage | Lost 8 parts (3n1u4w) 3470 | -8/Storage | Core integrity fell below 50% 3509 | -8/Storage | Lost 3 parts (2u1w) 3726 | -8/Storage | Identified Exp. Sensor Array 3785 | -8/Storage | Core integrity fell below 20% 3793 | -8/Storage | System corruption reached 10% 3825 | -8/Storage | Lost 11 parts (1p3n3u4w) 4072 | -8/Storage | Build established: Scavenger-Mutant 4118 | -8/Storage | Destroyed by G-47 Trooper with Particle Gun Last Messages --------------- 03919_ System corrupted: Particle Gun failed to cycle. 03926_ System corrupted: Energy discharge (-56). 03943_ System corrupted: Energy discharge (-60). 03962_ System corrupted: Energy discharge (-36). 03983_ Connecting with Terminal... >>Layout(Zone) Retrieving Zone 8U layout... Downloaded map data. 03997_ BI Z4X